[Event "*** Titled Tuesday 3|2 Blitz (Early)"]
[Site "Chess.com"]
[Date "2017.01.03"]
[Round "4"]
[White "Holden-Caulfield"]
[Black "Malev212"]
[Result "0-1"]
[WhiteElo "2439"]
[BlackElo "2410"]
[TimeControl "180+2"]
[EndTime "11:51:22 PST"]
[Termination "Malev212 won by resignation"]

1. d4 {[%clk 0:03:01.9]} 1... Nf6 {[%clk 0:02:59.5]} 2. Nf3 {[%clk 0:03:02.2]}
2... e6 {[%clk 0:03:00.2]} 3. Bg5 {[%clk 0:03:03]} 3... h6 {[%clk 0:02:58.7]} 4.
Bxf6 {[%clk 0:03:03.5]} 4... Qxf6 {[%clk 0:02:59.4]} 5. Nbd2 {[%clk 0:03:04.6]}
5... d6 {[%clk 0:02:58.3]} 6. c3 {[%clk 0:03:05.8]} 6... g6 {[%clk 0:02:56.4]}
7. e3 {[%clk 0:03:06.1]} 7... Bg7 {[%clk 0:02:57.3]} 8. Bd3 {[%clk 0:03:07.3]}
8... Qe7 {[%clk 0:02:55.2]} 9. Qe2 {[%clk 0:03:05.3]} 9... Nd7 {[%clk
0:02:56.6]} 10. O-O {[%clk 0:03:05.7]} 10... O-O {[%clk 0:02:56.6]} 11. Rfe1
{[%clk 0:03:06.9]} 11... a6 {[%clk 0:02:55.9]} 12. e4 {[%clk 0:03:07.6]} 12...
b6 {[%clk 0:02:55.4]} 13. Rad1 {[%clk 0:03:08.4]} 13... Bb7 {[%clk 0:02:55.8]}
14. Nf1 {[%clk 0:03:09.6]} 14... c5 {[%clk 0:02:52.6]} 15. Ng3 {[%clk
0:03:09.5]} 15... b5 {[%clk 0:02:46.7]} 16. a3 {[%clk 0:03:09.1]} 16... Rac8
{[%clk 0:02:46.6]} 17. h4 {[%clk 0:03:07.9]} 17... cxd4 {[%clk 0:02:29.5]} 18.
cxd4 {[%clk 0:03:07.5]} 18... Qf6 {[%clk 0:02:26]} 19. h5 {[%clk 0:03:03.1]}
19... g5 {[%clk 0:02:26]} 20. Bb1 {[%clk 0:03:00.6]} 20... Qf4 {[%clk
0:02:21.1]} 21. Qd3 {[%clk 0:02:47.2]} 21... Rfd8 {[%clk 0:02:21.5]} 22. Ne2
{[%clk 0:02:41.7]} 22... Qf6 {[%clk 0:02:14.5]} 23. Ng3 {[%clk 0:02:39.7]} 23...
g4 {[%clk 0:02:05.6]} 24. Nh2 {[%clk 0:02:39.9]} 24... Qg5 {[%clk 0:02:06.3]}
25. Qe2 {[%clk 0:02:40.1]} 25... Nf6 {[%clk 0:02:05.2]} 26. e5 {[%clk
0:02:41.3]} 26... dxe5 {[%clk 0:01:58.9]} 27. dxe5 {[%clk 0:02:42]} 27... Rxd1
{[%clk 0:01:57.8]} 28. Rxd1 {[%clk 0:02:42.3]} 28... Nd5 {[%clk 0:01:51.3]} 29.
Qxg4 {[%clk 0:02:36.8]} 29... Bxe5 {[%clk 0:01:50.8]} 30. Qxg5+ {[%clk
0:02:27.5]} 30... hxg5 {[%clk 0:01:50.6]} 31. Ne4 {[%clk 0:02:28.7]} 31... Nf4
{[%clk 0:01:38.3]} 32. Ng4 {[%clk 0:02:27.1]} 32... Bxb2 {[%clk 0:01:37]} 33.
Nxg5 {[%clk 0:02:19.3]} 33... Bxg2 {[%clk 0:01:30.7]} 34. h6 {[%clk 0:02:13.9]}
34... Nh3+ {[%clk 0:01:13.2]} 35. Kxg2 {[%clk 0:02:13.8]} 35... Nxg5 {[%clk
0:01:13.6]} 36. f4 {[%clk 0:02:11.8]} 36... Nh7 {[%clk 0:01:12.6]} 37. Rd7
{[%clk 0:02:04.6]} 37... Nf6 {[%clk 0:01:11.7]} 38. Nxf6+ {[%clk 0:02:03.7]}
38... Bxf6 {[%clk 0:01:11.2]} 39. h7+ {[%clk 0:02:01.4]} 39... Kg7 {[%clk
0:01:10.5]} 40. Ra7 {[%clk 0:02:02.3]} 40... Bd4 {[%clk 0:00:58.2]} 41. Rxa6
{[%clk 0:02:01.6]} 41... Rb8 {[%clk 0:00:42.7]} 42. Kf3 {[%clk 0:02:00.5]} 42...
Bb2 {[%clk 0:00:34.7]} 43. Bd3 {[%clk 0:01:52]} 43... f5 {[%clk 0:00:34.8]} 44.
Rxe6 {[%clk 0:01:52.2]} 44... Kxh7 {[%clk 0:00:33.7]} 45. Bxf5+ {[%clk
0:01:53.3]} 45... Kg7 {[%clk 0:00:35]} 46. Ra6 {[%clk 0:01:49]} 46... Bc1 {[%clk
0:00:35.7]} 47. Rc6 {[%clk 0:01:47]} 47... Bxa3 {[%clk 0:00:35.3]} 48. Rc7+
{[%clk 0:01:48.5]} 48... Kf6 {[%clk 0:00:35.7]} 49. Bc2 {[%clk 0:01:49.7]} 49...
Bd6 {[%clk 0:00:35.9]} 50. Rc6 {[%clk 0:01:50.4]} 50... Ke7 {[%clk 0:00:36.8]}
51. f5 {[%clk 0:01:51.3]} 51... Kd7 {[%clk 0:00:35.2]} 52. Ra6 {[%clk
0:01:52.1]} 52... Rc8 {[%clk 0:00:32.9]} 53. Be4 {[%clk 0:01:48.2]} 53... Rc3+
{[%clk 0:00:33.1]} 54. Ke2 {[%clk 0:01:48.9]} 54... b4 {[%clk 0:00:33.5]} 55.
Bd5 {[%clk 0:01:47.3]} 55... Kc7 {[%clk 0:00:30.3]} 56. f6 {[%clk 0:01:45.8]}
56... b3 {[%clk 0:00:29.1]} 57. Ra7+ {[%clk 0:01:38.6]} 57... Kb6 {[%clk
0:00:29]} 58. Rb7+ {[%clk 0:01:39.8]} 58... Kc5 {[%clk 0:00:29.5]} 59. Bxb3
{[%clk 0:01:40.8]} 59... Kc6 {[%clk 0:00:22.5]} 60. Ra7 {[%clk 0:01:28.3]} 60...
Rxb3 {[%clk 0:00:21.8]} 61. f7 {[%clk 0:01:29.8]} 61... Rb8 {[%clk 0:00:22.1]}
62. Kf3 {[%clk 0:01:29.1]} 62... Kd5 {[%clk 0:00:21.4]} 63. Ra5+ {[%clk
0:01:28.4]} 63... Ke6 {[%clk 0:00:21.9]} 64. f8=Q {[%clk 0:01:28.5]} 64... Rxf8+
{[%clk 0:00:21.2]} 65. Ke4 {[%clk 0:01:30]} 65... Rf4+ {[%clk 0:00:21.4]} 66.
Ke3 {[%clk 0:01:31.3]} 66... Rh4 {[%clk 0:00:22.7]} 67. Ra6 {[%clk 0:01:32.2]}
67... Kd5 {[%clk 0:00:22.3]} 68. Kf3 {[%clk 0:01:31.3]} 68... Rh3+ {[%clk
0:00:22.1]} 69. Kg2 {[%clk 0:01:32.1]} 69... Rb3 {[%clk 0:00:22.4]} 70. Ra4
{[%clk 0:01:33.3]} 70... Be5 {[%clk 0:00:22.9]} 71. Kf2 {[%clk 0:01:33.7]} 71...
Ke6 {[%clk 0:00:23.4]} 72. Ke2 {[%clk 0:01:34.7]} 72... Kf5 {[%clk 0:00:24.4]}
73. Ra7 {[%clk 0:01:34.8]} 73... Ke4 {[%clk 0:00:24.1]} 74. Re7 {[%clk 0:01:36]}
74... Rb2+ {[%clk 0:00:24.1]} 75. Kd1 {[%clk 0:01:37.5]} 75... Rh2 {[%clk
0:00:23.5]} 76. Ke1 {[%clk 0:01:36.7]} 76... Kf4 {[%clk 0:00:23.9]} 77. Kd1
{[%clk 0:01:35.6]} 77... Bd4 {[%clk 0:00:23.7]} 78. Rf7+ {[%clk 0:01:36.6]}
78... Ke4 {[%clk 0:00:24.1]} 79. Re7+ {[%clk 0:01:37.9]} 79... Kd3 {[%clk
0:00:24.9]} 80. Re1 {[%clk 0:01:37]} 80... Ra2 {[%clk 0:00:22.7]} 0-1

[Event "*** Titled Tuesday 3|2 Blitz (Early)"]
[Site "Chess.com"]
[Date "2017.01.03"]
[Round "5"]
[White "Andrejkin"]
[Black "SidArun"]
[Result "1/2-1/2"]
[WhiteElo "2187"]
[BlackElo "2053"]
[TimeControl "180+2"]
[EndTime "11:56:55 PST"]
[Termination "Game drawn by repetition"]

1. e4 {[%clk 0:03:02]} 1... c6 {[%clk 0:03:00.4]} 2. d4 {[%clk 0:03:01.8]} 2...
d5 {[%clk 0:03:02.3]} 3. Nc3 {[%clk 0:03:03.7]} 3... dxe4 {[%clk 0:03:03.5]} 4.
Nxe4 {[%clk 0:03:05.6]} 4... Bf5 {[%clk 0:03:05.1]} 5. Ng3 {[%clk 0:03:06.7]}
5... Bg6 {[%clk 0:03:06.8]} 6. h4 {[%clk 0:03:08.2]} 6... h6 {[%clk 0:03:07.8]}
7. Nf3 {[%clk 0:03:09.9]} 7... Nd7 {[%clk 0:03:08.4]} 8. h5 {[%clk 0:03:11.5]}
8... Bh7 {[%clk 0:03:09.7]} 9. Bd3 {[%clk 0:03:13.2]} 9... Bxd3 {[%clk
0:03:11.4]} 10. Qxd3 {[%clk 0:03:15]} 10... e6 {[%clk 0:03:13.1]} 11. Bd2 {[%clk
0:03:16.6]} 11... Ngf6 {[%clk 0:03:14.1]} 12. O-O-O {[%clk 0:03:18.3]} 12... Be7
{[%clk 0:03:15.1]} 13. Kb1 {[%clk 0:03:19.9]} 13... Qb6 {[%clk 0:03:14.2]} 14.
Ne4 {[%clk 0:03:19.7]} 14... Nxe4 {[%clk 0:03:15]} 15. Qxe4 {[%clk 0:03:21.6]}
15... Nf6 {[%clk 0:03:16.5]} 16. Qe2 {[%clk 0:03:22.3]} 16... O-O-O {[%clk
0:03:15]} 17. c4 {[%clk 0:03:22.7]} 17... c5 {[%clk 0:03:15.1]} 18. Bc3 {[%clk
0:02:58.3]} 18... Rhf8 {[%clk 0:03:09.1]} 19. d5 {[%clk 0:02:47.2]} 19... exd5
{[%clk 0:02:56.3]} 20. cxd5 {[%clk 0:02:44.6]} 20... Nxd5 {[%clk 0:02:38.3]} 21.
Qc4 {[%clk 0:02:36.7]} 21... Qc6 {[%clk 0:02:33.7]} 22. Bxg7 {[%clk 0:02:33.2]}
22... Rg8 {[%clk 0:02:32.3]} 23. Qg4+ {[%clk 0:02:27.9]} 23... Qe6 {[%clk
0:02:32]} 24. Qxe6+ {[%clk 0:02:28.3]} 24... fxe6 {[%clk 0:02:33.1]} 25. Bxh6
{[%clk 0:02:30.2]} 25... Rxg2 {[%clk 0:02:33.7]} 26. Rhe1 {[%clk 0:02:23.6]}
26... Kd7 {[%clk 0:02:30]} 27. Ne5+ {[%clk 0:02:22.1]} 27... Kc7 {[%clk
0:02:25.1]} 28. Nf7 {[%clk 0:02:19.7]} 28... Rd7 {[%clk 0:02:18.9]} 29. Ne5
{[%clk 0:02:19.8]} 29... Rd8 {[%clk 0:02:19.5]} 30. Nf7 {[%clk 0:02:15.5]} 30...
Rd7 {[%clk 0:02:20.2]} 31. Ne5 {[%clk 0:02:07.4]} 31... Rd8 {[%clk 0:02:21.1]}
32. Nf7 {[%clk 0:02:09]} 1/2-1/2

[Event "*** Titled Tuesday 3|2 Blitz (Early)"]
[Site "Chess.com"]
[Date "2017.01.03"]
[Round "5"]
[White "lionheart95"]
[Black "ChessWarrior7197"]
[Result "1-0"]
[WhiteElo "2435"]
[BlackElo "2499"]
[TimeControl "180+2"]
[EndTime "11:57:07 PST"]
[Termination "lionheart95 won by resignation"]

1. e4 {[%clk 0:03:02]} 1... e5 {[%clk 0:03:00.1]} 2. Nf3 {[%clk 0:03:02.7]} 2...
Nc6 {[%clk 0:03:00.7]} 3. Bb5 {[%clk 0:03:03.4]} 3... a6 {[%clk 0:03:01.4]} 4.
Bxc6 {[%clk 0:03:04.4]} 4... dxc6 {[%clk 0:03:01.8]} 5. O-O {[%clk 0:03:05.8]}
5... f6 {[%clk 0:03:03.1]} 6. d4 {[%clk 0:03:05.7]} 6... exd4 {[%clk 0:03:05]}
7. Nxd4 {[%clk 0:03:05.8]} 7... c5 {[%clk 0:03:06.3]} 8. Nb3 {[%clk 0:03:06.5]}
8... Qxd1 {[%clk 0:03:08.2]} 9. Rxd1 {[%clk 0:03:07.6]} 9... Bg4 {[%clk
0:03:07.2]} 10. f3 {[%clk 0:03:08]} 10... Bd7 {[%clk 0:03:08.1]} 11. Nc3 {[%clk
0:03:09.1]} 11... O-O-O {[%clk 0:03:08.1]} 12. Bf4 {[%clk 0:03:09.8]} 12... c4
{[%clk 0:03:05.4]} 13. Na5 {[%clk 0:03:10.7]} 13... Bc5+ {[%clk 0:03:05.3]} 14.
Kf1 {[%clk 0:03:11.8]} 14... Bb4 {[%clk 0:02:59.9]} 15. Bxc7 {[%clk 0:02:19.7]}
15... Kxc7 {[%clk 0:01:57]} 16. Nd5+ {[%clk 0:02:15.6]} 16... Kc8 {[%clk
0:01:57.9]} 17. Nxb4 {[%clk 0:02:17.5]} 17... Bb5 {[%clk 0:01:58.6]} 18. Rxd8+
{[%clk 0:02:14.4]} 18... Kxd8 {[%clk 0:02:00.5]} 19. a4 {[%clk 0:02:09.6]} 19...
Be8 {[%clk 0:01:50.4]} 20. Nxb7+ {[%clk 0:02:09.6]} 20... Kc7 {[%clk 0:01:50.3]}
21. Nc5 {[%clk 0:02:10.3]} 21... a5 {[%clk 0:01:50.4]} 22. Nd5+ {[%clk
0:02:11.2]} 22... Kc6 {[%clk 0:01:49.8]} 23. Ne6 {[%clk 0:02:12.2]} 23... Bf7
{[%clk 0:01:48.4]} 24. Nd8+ {[%clk 0:02:12.5]} 1-0

[Event "*** Titled Tuesday 3|2 Blitz (Early)"]
[Site "Chess.com"]
[Date "2017.01.03"]
[Round "5"]
[White "MFBerna"]
[Black "RitvarsReimanis"]
[Result "0-1"]
[WhiteElo "2196"]
[BlackElo "2441"]
[TimeControl "180+2"]
[EndTime "11:57:58 PST"]
[Termination "RitvarsReimanis won by resignation"]

1. e4 {[%clk 0:03:00]} 1... c5 {[%clk 0:02:59.9]} 2. Nf3 {[%clk 0:03:00]} 2...
Nc6 {[%clk 0:03:01.1]} 3. d4 {[%clk 0:02:58.1]} 3... cxd4 {[%clk 0:03:03]} 4.
Nxd4 {[%clk 0:02:59.6]} 4... Nf6 {[%clk 0:03:04.9]} 5. Nc3 {[%clk 0:02:59.9]}
5... d6 {[%clk 0:03:06.6]} 6. Be3 {[%clk 0:02:57.2]} 6... e5 {[%clk 0:03:07.7]}
7. Nf3 {[%clk 0:02:57.6]} 7... Be7 {[%clk 0:03:03.4]} 8. Bc4 {[%clk 0:02:57]}
8... O-O {[%clk 0:03:03.9]} 9. h3 {[%clk 0:02:52.2]} 9... Na5 {[%clk 0:03:03.4]}
10. Bd3 {[%clk 0:02:44.4]} 10... Be6 {[%clk 0:03:03.1]} 11. O-O {[%clk
0:02:43.7]} 11... Nc4 {[%clk 0:03:04.2]} 12. Bc1 {[%clk 0:02:42.8]} 12... Rc8
{[%clk 0:02:59.1]} 13. Ng5 {[%clk 0:02:42.7]} 13... Nb6 {[%clk 0:02:55.5]} 14.
f4 {[%clk 0:02:36.2]} 14... Bc4 {[%clk 0:02:51.9]} 15. Nf3 {[%clk 0:02:23.8]}
15... exf4 {[%clk 0:02:42.4]} 16. Bxf4 {[%clk 0:02:22.8]} 16... d5 {[%clk
0:02:43.6]} 17. e5 {[%clk 0:02:02.6]} 17... Ne4 {[%clk 0:02:28.1]} 18. Nxe4
{[%clk 0:01:23.3]} 18... dxe4 {[%clk 0:02:26.3]} 19. Bxe4 {[%clk 0:01:16.3]}
19... Bxf1 {[%clk 0:02:23.9]} 20. Qxf1 {[%clk 0:01:16.6]} 20... Nd5 {[%clk
0:02:19.2]} 21. Rd1 {[%clk 0:01:12.1]} 21... Qb6+ {[%clk 0:02:19.5]} 22. Kh2
{[%clk 0:01:09.1]} 22... Nxf4 {[%clk 0:02:18.9]} 23. Rd7 {[%clk 0:01:06.4]}
23... Rc7 {[%clk 0:02:13.7]} 0-1

[Event "*** Titled Tuesday 3|2 Blitz (Early)"]
[Site "Chess.com"]
[Date "2017.01.03"]
[Round "5"]
[White "OparinGrigoriy"]
[Black "biostatistician"]
[Result "1-0"]
[WhiteElo "2577"]
[BlackElo "2434"]
[TimeControl "180+2"]
[EndTime "11:58:09 PST"]
[Termination "OparinGrigoriy won by checkmate"]

1. Nf3 {[%clk 0:03:02]} 1... Nf6 {[%clk 0:03:00.4]} 2. g3 {[%clk 0:03:03.9]}
2... g6 {[%clk 0:03:01.8]} 3. Bg2 {[%clk 0:03:05.8]} 3... Bg7 {[%clk 0:03:03.7]}
4. c4 {[%clk 0:03:07.4]} 4... O-O {[%clk 0:03:05.6]} 5. Nc3 {[%clk 0:03:08.5]}
5... b6 {[%clk 0:03:07]} 6. O-O {[%clk 0:03:09.3]} 6... Bb7 {[%clk 0:03:07.5]}
7. d4 {[%clk 0:03:11]} 7... Ne4 {[%clk 0:03:07.8]} 8. Nxe4 {[%clk 0:03:10]} 8...
Bxe4 {[%clk 0:03:09.7]} 9. Bg5 {[%clk 0:03:11.4]} 9... c5 {[%clk 0:03:10.1]} 10.
dxc5 {[%clk 0:03:10]} 10... Bxb2 {[%clk 0:03:02.3]} 11. Qd2 {[%clk 0:03:11.4]}
11... Bxa1 {[%clk 0:03:00.3]} 12. Rxa1 {[%clk 0:03:13.3]} 12... bxc5 {[%clk
0:02:56.3]} 13. Qe3 {[%clk 0:03:14.6]} 13... Bc6 {[%clk 0:02:41.5]} 14. Bxe7
{[%clk 0:03:15.1]} 14... Qc8 {[%clk 0:02:14.5]} 15. Bxc5 {[%clk 0:03:16.2]}
15... Re8 {[%clk 0:02:14.8]} 16. Qg5 {[%clk 0:03:16.9]} 16... Qd8 {[%clk
0:02:04.9]} 17. Qf4 {[%clk 0:03:17.3]} 17... Re4 {[%clk 0:01:58.9]} 18. Qh6
{[%clk 0:03:18.4]} 18... f6 {[%clk 0:01:41]} 19. Nd4 {[%clk 0:02:58.8]} 19...
Re8 {[%clk 0:01:22.9]} 20. Nxc6 {[%clk 0:02:58]} 20... dxc6 {[%clk 0:01:21.4]}
21. e3 {[%clk 0:02:59]} 21... Qd7 {[%clk 0:01:18.4]} 22. Qf4 {[%clk 0:02:57.5]}
22... Kg7 {[%clk 0:01:05.9]} 23. Bd4 {[%clk 0:02:57.7]} 23... Qe6 {[%clk
0:01:01.7]} 24. Bh3 {[%clk 0:02:32.1]} 24... Qf7 {[%clk 0:00:49.5]} 25. Rb1
{[%clk 0:02:31]} 25... Na6 {[%clk 0:00:43.2]} 26. Rb7 {[%clk 0:02:30]} 26...
Qxb7 {[%clk 0:00:33.3]} 27. Qxf6+ {[%clk 0:02:30.7]} 27... Kg8 {[%clk
0:00:30.2]} 28. Qh8+ {[%clk 0:02:31.7]} 28... Kf7 {[%clk 0:00:31.3]} 29. Qg7#
{[%clk 0:02:33.4]} 1-0

[Event "*** Titled Tuesday 3|2 Blitz (Early)"]
[Site "Chess.com"]
[Date "2017.01.03"]
[Round "5"]
[White "VMikhalevski"]
[Black "pedromartinez91"]
[Result "1-0"]
[WhiteElo "2484"]
[BlackElo "2329"]
[TimeControl "180+2"]
[EndTime "11:58:35 PST"]
[Termination "VMikhalevski won by resignation"]

1. Nf3 {[%clk 0:03:02]} 1... d5 {[%clk 0:03:00]} 2. g3 {[%clk 0:03:02.9]} 2...
e6 {[%clk 0:03:00]} 3. Bg2 {[%clk 0:03:03.5]} 3... Nf6 {[%clk 0:03:00.7]} 4. O-O
{[%clk 0:03:04.2]} 4... Be7 {[%clk 0:03:01.8]} 5. c4 {[%clk 0:03:05.2]} 5... O-O
{[%clk 0:03:02.6]} 6. b3 {[%clk 0:03:06.2]} 6... b6 {[%clk 0:03:02.8]} 7. Bb2
{[%clk 0:03:04.9]} 7... Bb7 {[%clk 0:03:04.1]} 8. Nc3 {[%clk 0:03:03.3]} 8... d4
{[%clk 0:02:59.2]} 9. Nb5 {[%clk 0:03:03.9]} 9... c5 {[%clk 0:02:59.5]} 10. e3
{[%clk 0:03:05.1]} 10... a6 {[%clk 0:03:00.3]} 11. Na3 {[%clk 0:03:05.5]} 11...
dxe3 {[%clk 0:02:52.8]} 12. fxe3 {[%clk 0:03:03.5]} 12... Nc6 {[%clk 0:02:45.3]}
13. d4 {[%clk 0:03:02.1]} 13... Nb4 {[%clk 0:02:40.3]} 14. Nc2 {[%clk
0:02:59.8]} 14... Nxc2 {[%clk 0:02:38.4]} 15. Qxc2 {[%clk 0:03:00.3]} 15... Be4
{[%clk 0:02:40]} 16. Qe2 {[%clk 0:02:53.9]} 16... Qc7 {[%clk 0:02:40.7]} 17. Ne5
{[%clk 0:02:40.4]} 17... Bxg2 {[%clk 0:02:37.8]} 18. Qxg2 {[%clk 0:02:40.7]}
18... Nd7 {[%clk 0:02:35.3]} 19. Nc6 {[%clk 0:02:32.3]} 19... Bf6 {[%clk
0:02:34.9]} 20. Rad1 {[%clk 0:02:29.5]} 20... Rac8 {[%clk 0:02:29.3]} 21. d5
{[%clk 0:02:29]} 21... Bxb2 {[%clk 0:02:23.6]} 22. Ne7+ {[%clk 0:02:24.9]} 22...
Kh8 {[%clk 0:02:23.7]} 23. Nxc8 {[%clk 0:02:20.9]} 23... Qe5 {[%clk 0:01:47.7]}
24. dxe6 {[%clk 0:02:15.7]} 24... Qxe3+ {[%clk 0:01:48.1]} 25. Kh1 {[%clk
0:02:11.2]} 25... Qxe6 {[%clk 0:01:49.6]} 26. Rd6 {[%clk 0:02:02.4]} 26... Qe5
{[%clk 0:01:37.3]} 27. Rxd7 {[%clk 0:01:54.9]} 27... Rxc8 {[%clk 0:01:37.6]} 28.
Rdxf7 {[%clk 0:01:52.2]} 28... h6 {[%clk 0:01:32.6]} 29. Rf8+ {[%clk 0:01:46.4]}
29... Rxf8 {[%clk 0:01:32.2]} 30. Rxf8+ {[%clk 0:01:47.3]} 30... Kh7 {[%clk
0:01:33.7]} 31. Qc2+ {[%clk 0:01:48.4]} 31... g6 {[%clk 0:01:34]} 32. Rf7+
{[%clk 0:01:49.4]} 32... Kh8 {[%clk 0:01:31.9]} 33. Qxg6 {[%clk 0:01:50.2]}
33... Qe4+ {[%clk 0:01:23.4]} 34. Qxe4 {[%clk 0:01:49]} 1-0

[Event "*** Titled Tuesday 3|2 Blitz (Early)"]
[Site "Chess.com"]
[Date "2017.01.03"]
[Round "5"]
[White "1e41-0"]
[Black "Holden-Caulfield"]
[Result "0-1"]
[WhiteElo "2314"]
[BlackElo "2444"]
[TimeControl "180+2"]
[EndTime "11:59:00 PST"]
[Termination "Holden-Caulfield won by resignation"]

1. d4 {[%clk 0:03:02]} 1... d6 {[%clk 0:03:01.9]} 2. e4 {[%clk 0:03:00.7]} 2...
Nf6 {[%clk 0:03:02.7]} 3. Nc3 {[%clk 0:03:01.9]} 3... e5 {[%clk 0:03:03.9]} 4.
dxe5 {[%clk 0:03:02.2]} 4... dxe5 {[%clk 0:03:05]} 5. Qxd8+ {[%clk 0:03:03.8]}
5... Kxd8 {[%clk 0:03:05.9]} 6. Bg5 {[%clk 0:03:04.5]} 6... Be6 {[%clk
0:03:06.9]} 7. O-O-O+ {[%clk 0:03:05]} 7... Nd7 {[%clk 0:03:08.2]} 8. Nf3 {[%clk
0:03:02.4]} 8... Kc8 {[%clk 0:03:08.8]} 9. Be2 {[%clk 0:02:58.6]} 9... Bc5
{[%clk 0:03:08.9]} 10. Bh4 {[%clk 0:02:57.8]} 10... Ng4 {[%clk 0:03:09.7]} 11.
Rhf1 {[%clk 0:02:56.8]} 11... f6 {[%clk 0:03:10.8]} 12. h3 {[%clk 0:02:57]}
12... Nh6 {[%clk 0:03:11.9]} 13. Nd2 {[%clk 0:02:55.6]} 13... c6 {[%clk
0:03:08.2]} 14. Nb3 {[%clk 0:02:56.4]} 14... Be7 {[%clk 0:03:08.8]} 15. f3
{[%clk 0:02:56.5]} 15... Nf7 {[%clk 0:03:09.2]} 16. Bf2 {[%clk 0:02:57.7]} 16...
Kc7 {[%clk 0:03:10.4]} 17. Bd3 {[%clk 0:02:44.8]} 17... Rhd8 {[%clk 0:03:09.7]}
18. Be3 {[%clk 0:02:45.6]} 18... b6 {[%clk 0:03:05.6]} 19. h4 {[%clk 0:02:36]}
19... Nd6 {[%clk 0:03:06.6]} 20. g3 {[%clk 0:02:37]} 20... Nc4 {[%clk
0:03:07.4]} 21. Bf2 {[%clk 0:02:33.3]} 21... a5 {[%clk 0:03:08.4]} 22. Nd2
{[%clk 0:02:31.9]} 22... Nd6 {[%clk 0:03:08.3]} 23. a4 {[%clk 0:02:29]} 23...
Nb7 {[%clk 0:03:09.1]} 24. Bc4 {[%clk 0:02:24.5]} 24... Ndc5 {[%clk 0:03:06.3]}
25. Bxe6 {[%clk 0:02:24.8]} 25... Nxe6 {[%clk 0:03:07.5]} 26. Nc4 {[%clk
0:02:24.8]} 26... Bc5 {[%clk 0:03:08.8]} 27. Bxc5 {[%clk 0:02:24.1]} 27... Nbxc5
{[%clk 0:03:10.1]} 28. b3 {[%clk 0:02:22.3]} 28... Nd4 {[%clk 0:02:58]} 29. f4
{[%clk 0:02:22.4]} 29... b5 {[%clk 0:02:59.3]} 30. axb5 {[%clk 0:02:21.6]} 30...
cxb5 {[%clk 0:03:00]} 31. Ne3 {[%clk 0:02:22.8]} 31... Nce6 {[%clk 0:02:40.2]}
32. Ned5+ {[%clk 0:02:20.7]} 32... Kd6 {[%clk 0:02:39.9]} 33. f5 {[%clk
0:02:00.3]} 33... Nc5 {[%clk 0:02:37.3]} 34. Nb6 {[%clk 0:01:53.3]} 34... Rab8
{[%clk 0:02:33.5]} 35. Nxb5+ {[%clk 0:01:51.9]} 35... Kc6 {[%clk 0:02:34.7]} 36.
Nxd4+ {[%clk 0:01:52.5]} 36... exd4 {[%clk 0:02:35.5]} 37. Nc4 {[%clk
0:01:52.4]} 37... a4 {[%clk 0:02:30.9]} 38. bxa4 {[%clk 0:01:52.5]} 38... Nxa4
{[%clk 0:02:31.1]} 39. Na5+ {[%clk 0:01:44]} 39... Kc5 {[%clk 0:02:28.7]} 40.
Nb3+ {[%clk 0:01:44.7]} 40... Kc4 {[%clk 0:02:30.2]} 41. Rd3 {[%clk 0:01:38.9]}
41... Nc3 {[%clk 0:02:30.4]} 42. Rf2 {[%clk 0:01:31.2]} 42... Rxb3 {[%clk
0:02:28.3]} 43. Rxd4+ {[%clk 0:01:25.6]} 43... Kxd4 {[%clk 0:02:11.3]} 44. Rd2+
{[%clk 0:01:20.9]} 44... Kxe4 {[%clk 0:02:12.1]} 45. Rxd8 {[%clk 0:01:22.5]}
45... Rb1+ {[%clk 0:02:12.4]} 0-1

[Event "*** Titled Tuesday 3|2 Blitz (Early)"]
[Site "Chess.com"]
[Date "2017.01.03"]
[Round "5"]
[White "visa"]
[Black "Wolverine_master"]
[Result "0-1"]
[WhiteElo "2143"]
[BlackElo "2024"]
[TimeControl "180+2"]
[EndTime "11:59:08 PST"]
[Termination "Wolverine_master won on time"]

1. e4 {[%clk 0:03:02]} 1... d5 {[%clk 0:02:59.9]} 2. exd5 {[%clk 0:03:02.5]}
2... Qxd5 {[%clk 0:03:01.4]} 3. Nc3 {[%clk 0:03:03.9]} 3... Qd6 {[%clk
0:03:02.8]} 4. d4 {[%clk 0:03:03]} 4... Nf6 {[%clk 0:03:04.2]} 5. Nf3 {[%clk
0:03:03.7]} 5... a6 {[%clk 0:03:05.7]} 6. Ne5 {[%clk 0:03:04.4]} 6... Nc6 {[%clk
0:03:06.1]} 7. Nxc6 {[%clk 0:02:10.3]} 7... Qxc6 {[%clk 0:03:08]} 8. d5 {[%clk
0:02:01.6]} 8... Qd6 {[%clk 0:03:07.8]} 9. Be2 {[%clk 0:01:48.8]} 9... e6 {[%clk
0:03:01.2]} 10. Bf3 {[%clk 0:01:31.2]} 10... exd5 {[%clk 0:02:57.8]} 11. Nxd5
{[%clk 0:01:27.6]} 11... Nxd5 {[%clk 0:02:55.8]} 12. Bxd5 {[%clk 0:01:25.7]}
12... Qe5+ {[%clk 0:02:45.1]} 13. Be3 {[%clk 0:01:26.1]} 13... Bc5 {[%clk
0:02:43.4]} 14. O-O {[%clk 0:01:21.4]} 14... Bxe3 {[%clk 0:02:41.7]} 15. Re1
{[%clk 0:00:59.7]} 15... O-O {[%clk 0:02:35.7]} 16. Rxe3 {[%clk 0:00:59.6]}
16... Qxb2 {[%clk 0:02:20]} 17. Rb1 {[%clk 0:00:55.7]} 17... Qf6 {[%clk
0:02:16.4]} 18. Rf3 {[%clk 0:00:50.9]} 18... Qe7 {[%clk 0:02:03.8]} 19. Rbb3
{[%clk 0:00:27.9]} 19... Bg4 {[%clk 0:01:59.6]} 20. Rxf7 {[%clk 0:00:12]} 20...
Rxf7 {[%clk 0:01:45.2]} 21. Bxf7+ {[%clk 0:00:05.8]} 21... Kxf7 {[%clk
0:01:44.5]} 0-1